Cogmind - Beta 9.2 @@@ ROGUE MODE // 2019.12.15 @ 15:00:09 Player: Fleshy Vegetable Bird Result: Destroyed by S-27 Virus with Autogun Performance ------------- Evolutions (3) 1500 Regions Visited (8) 1600 Robots Destroyed (93) 465 Value Destroyed (2726) 2726 Prototype IDs (26) 520 Alien Tech Used (0) 0 Bonus (228) 228 TOTAL SCORE: 7039 Bonus ------- Follower Combat Kills 70 Aligned with FarCom 300 Friendly Fire -142 Cogmind --------- Core Integrity 0/700 Matter 300/300 Energy 100/100 System Corruption 0% Temperature Cool (0) Movement Flying (1240) Ox15 Location -7/Lower Caves Parts ------- > --- POWER (1) -------- (None) > --- PROPULSION (4) --- VTOL Module > --- UTILITY (5) ------ High-capacity Storage Unit High-capacity Storage Unit Heart of Steel > --- WEAPON (3) ------- Axe Ripper > --- INVENTORY (20) --- Improved Heat Sink High-capacity Storage Unit Long-range Terrain Scanner Improved Salvage Targeting Computer Melee Analysis Suite Energy Filter Particle Charger Improved Power Shielding Medium Reactive Plating System Shield Autogun Battle Rifle High-powered Shotgun Heavy Battle Rifle Field Lobotomy Kit Peak State ------------ > --- POWER ------------ Improved Deuterium Engine > --- PROPULSION ------- Advanced Treads Aluminum Leg > --- UTILITY ---------- High-capacity Storage Unit High-capacity Storage Unit Heart of Steel > --- WEAPON ----------- Heavy EM Shotgun Makeshift Laser EM Pulse Cannon > --- INVENTORY -------- Improved Deuterium Engine Improved Heat Sink High-capacity Storage Unit Long-range Terrain Scanner Improved Salvage Targeting Computer Melee Analysis Suite Particle Charger Medium Reactive Plating System Shield Autogun High-powered Shotgun Heavy Battle Rifle Shock Bomb Launcher Field Lobotomy Kit Axe Ripper [Rating: 50] Favorites ----------- Power Nuclear Core Engine Light Ion Engine Power Core Nuclear Core Propulsion Armored Treads Treads Armored Treads Leg Carbon-fiber Leg Wheel Wheel Flight Unit VTOL Module Utility High-capacity Storage Unit Device Improved Heat Sink Storage High-capacity Storage Unit Processor Improved Targeting Computer Protection Hardened Medium Armor Plating Weapon Plasma Cannon Energy Gun Beam Rifle Energy Cannon Plasma Cannon Ballistic Gun Assault Rifle Launcher Shock Bomb Launcher Slashing Weapon Axe Build | -11 -10 -10 -10 -9 -8 -7 -7 -7 ------- Run | Scr Mat Min Exi Min Mat Fac Low Low Slots Evolved 6 | . . . . . 4 2 . . Power . | . . . . . . . . . Propulsion 2 | . . . . . 1 1 . . Utility 3 | . . . . . 2 1 . . Weapon 1 | . . . . . 1 . . . Parts Attached 78 | 8 6 . 2 1 25 7 5 24 Power 8 | 1 . . . 1 2 1 . 3 Engine 5 | 1 . . . 1 . . . 3 Core 3 | . . . . . 2 1 . . Reactor . | . . . . . . . . . Propulsion 23 | 3 2 . . . 6 3 1 8 Treads 5 | . . . . . . 2 1 2 Leg 4 | . . . . . . . . 4 Wheel 12 | 3 2 . . . 6 1 . . Hover . | . . . . . . . . . Flight 2 | . . . . . . . . 2 Utility 18 | 2 2 . 2 . 5 3 1 3 Device 3 | . . . . . 1 1 . 1 Storage 8 | 2 2 . 2 . . . 1 1 Processor 1 | . . . . . 1 . . . Hackware . | . . . . . . . . . Protection 6 | . . . . . 3 2 . 1 Artifact . | . . . . . . . . . Weapon 29 | 2 2 . . . 12 . 3 10 Energy Gun 13 | 1 1 . . . 6 . . 5 Energy Cannon 8 | . . . . . 4 . 2 2 Ballistic Gun 4 | 1 1 . . . 2 . . . Ballistic Cannon . | . . . . . . . . . Launcher 2 | . . . . . . . 1 1 Special Weapon . | . . . . . . . . . Impact Weapon . | . . . . . . . . . Slashing Weapon 2 | . . . . . . . . 2 Piercing Weapon . | . . . . . . . . . Special Melee Weapon . | . . . . . . . . . Unidentified Prototypes 3 | . . . . . 2 . . 1 Parts Lost 46 | . 4 . . 1 13 . 2 26 Power 4 | . . . . 1 . . . 3 Propulsion 17 | . 2 . . . 5 . . 10 Utility 7 | . . . . . 3 . 1 3 Weapon 18 | . 2 . . . 5 . 1 10 Highest Loss Streak 7 | . 2 . . 1 4 . 2 7 Average Slot Usage (%) 84 | . 92 100 100 99 81 93 90 69 Engine 3 | . 14 14 14 13 2 . . 3 Core 4 | . . . . . 6 7 7 2 Treads 7 | . . . . . . 12 15 8 Leg 1 | . . . . . . . . 6 Wheel 12 | . 23 28 28 28 18 11 7 3 Device 3 | . . . . . 2 7 7 3 Storage 20 | . 28 28 28 28 18 15 21 19 Processor 1 | . . . . . 3 7 . . Protection 3 | . . . . . 3 6 7 2 Energy Gun 10 | . 5 14 14 14 15 15 1 6 Energy Cannon 5 | . . . . . 4 7 14 4 Ballistic Gun 3 | . 19 14 14 14 5 . . . Launcher 1 | . . . . . . . 5 1 Naked Turns . | . . . . . . . . . Heaviest Build 134 | 14 38 38 70 72 94 93 134 134 Greatest Support 55 | 20 20 20 20 20 36 40 40 55 Greatest Overweight (x) 15 | 2 3 1 3 3 7 3 4 15 Average Overweight (x) 2 | . 1 1 2 3 2 2 3 3 Largest Inventory Capacity 28 | 8 16 16 20 20 20 20 28 28 Average Capacity 21 | 6 15 16 18 20 20 20 26 24 Most Carried 28 | 6 8 8 14 15 20 20 28 28 Average Carried 19 | 4 6 6 11 13 19 19 25 21 Final Capacity 28 | 8 16 16 20 20 20 20 28 20 Final Carried 28 | 5 6 8 13 15 20 20 28 15 Class Distribution -------------------- 45% | Hauler-Mutant 14% | Hauler-Gunner 13% | Hauler-Skirmisher 9% | Hauler-Tank 9% | Mutant 4% | Scavenger-Mutant Dominant Class ---------------- Mutant | -10/Materials Mutant | -10/Mines Hauler-Mutant | -10/Exiles Hauler-Mutant | -9/Mines Hauler-Skirmisher | -8/Materials Hauler-Gunner | -7/Factory Hauler-Mutant | -7/Lower Caves Hauler-Mutant | -7/Lower Caves Resources | -11 -10 -10 -10 -9 -8 -7 -7 -7 ----------- Run | Scr Mat Min Exi Min Mat Fac Low Low Matter Collected 2398 | 281 99 38 . 67 343 70 85 1415 Remotely . | . . . . . . . . . Salvage Created 4177 | 211 271 . . 233 1633 414 394 1021 Parts 184 | 21 17 . . 11 79 11 11 34 Haulers Intercepted 3 | . . . . . 3 . . . Recyclers Shooed 1 | . . . . . 1 . . . Parts Field Recycled . | . . . . . . . . . Retrieved Matter . | . . . . . . . . . Parts Self-Destructed 28 | . . . . . . . 5 23 Prevented 13 | . . . . . . . 7 6 Kills | -11 -10 -10 -10 -9 -8 -7 -7 -7 ------- Run | Scr Mat Min Exi Min Mat Fac Low Low Combat Hostiles Destroyed 65 | . 8 . . 6 18 5 7 21 Melee 4 | . . . . . . . . 4 Guns 36 | . 8 . . 6 13 2 1 6 Cannons 14 | . . . . . 4 1 3 6 AOE 6 | . . . . . . . 3 3 Classes Destroyed 15 | 2 2 . . 1 6 1 2 1 Worker 2 | . . . . . 2 . . . Builder 2 | . . . . . 2 . . . Tunneler 6 | 5 . . . . 1 . . . Hauler 3 | . . . . . 3 . . . Recycler 10 | 1 . . . 1 7 1 . . Minesweeper 1 | . . . . . . . 1 . Watcher 4 | . . . . . 3 1 . . Swarmer 19 | . 3 . . 4 5 . . 7 Grunt 25 | . 5 . . 1 8 . 4 7 Brawler 1 | . . . . 1 . . . . Duelist 2 | . . . . . . . 1 1 Sentry 8 | . . . . . 4 4 . . Hunter 3 | . . . . . 1 . 2 . Programmer 1 | . . . . . . 1 . . Thug 3 | . . . . . . . . 3 Butcher 2 | . . . . . . . . 2 Mutant 1 | . . . . . . . . 1 Best Kill Streak 13 | 6 3 . . 4 13 2 4 3 Combat Bots Only 4 | . 3 . . 4 3 2 4 3 Max Kills in Single Turn 3 | 1 1 . . 2 3 1 1 1 Gunslinging 1 | . . . . 1 . . . . Exploded 1 | . . . . . . . 1 1 Melee 1 | . . . . . . . . 1 Uniques/NPCs Destroyed . | . . . . . . . . . Combat | -11 -10 -10 -10 -9 -8 -7 -7 -7 -------- Run | Scr Mat Min Exi Min Mat Fac Low Low Damage Taken 6593 | . 362 . . 131 1400 483 657 3560 Core 1005 | . 74 . . 37 186 49 100 559 Absorbed by Shields . | . . . . . . . . . Core Remaining (%) 73 | 100 . . . 55 66 . . . Volleys Fired 235 | 20 33 . . 14 71 26 25 46 Largest 3 | 2 2 . . 2 3 3 3 3 Hottest 215 | 60 60 . . 60 199 199 206 215 Shots Fired 507 | 21 54 . . 28 173 78 59 94 Gun 362 | 21 54 . . 28 136 52 14 57 Cannon 132 | . . . . . 37 26 38 31 Launcher 13 | . . . . . . . 7 6 Special . | . . . . . . . . . Kinetic 114 | 1 46 . . 14 53 . . . Thermal 232 | . . . . 14 64 78 52 24 Explosive . | . . . . . . . . . Electromagnetic 161 | 20 8 . . . 56 . 7 70 Robot Hit Streak 29 | 8 9 . . 6 16 29 15 12 Robot Miss Streak 12 | 2 4 . . 3 10 12 3 6 Penetration Max . | . . . . . . . . . Secondary Targets 3 | . 1 . . 2 . . . . Max Gunslinging Chain 1 | . 1 . . 1 . . . . Shots Hit Robots 321 | 14 32 . . 16 106 45 34 74 Core Hits 153 | 6 14 . . 10 55 14 13 41 Critical Hits 3 | . . . . . 1 . . 2 Critical Kills . | . . . . . . . . . Critical Parts Destroyed 2 | . . . . . . . . 2 Melee Attacks 23 | . . . . . . . . 23 Impact . | . . . . . . . . . Slashing 23 | . . . . . . . . 23 Piercing . | . . . . . . . . . Sneak Attacks . | . . . . . . . . . Combat Hostiles . | . . . . . . . . . Follow-up Attacks . | . . . . . . . . . Damage Inflicted 7125 | 198 323 . . 167 2134 875 1074 2354 Guns 3385 | 198 323 . . 167 1377 556 147 617 Cannons 2052 | . . . . . 599 319 542 592 Explosions 1315 | . . . . . 158 . 385 772 Melee 373 | . . . . . . . . 373 Ramming . | . . . . . . . . . Kinetic 616 | . 244 . . 57 315 . . . Thermal 3382 | . . . . 110 1018 875 689 690 Explosive . | . . . . . . . . . Electromagnetic 2754 | 198 79 . . . 801 . 385 1291 Impact . | . . . . . . . . . Slashing 373 | . . . . . . . . 373 Piercing . | . . . . . . . . . Highest Corruption . | . . . . . . . . . Average Corruption . | . . . . . . . . . Corruption Purged . | . . . . . . . . . Overload Shots . | . . . . . . . . . Overflow Damage 203 | . . . . . 10 7 69 117 Projectiles 105 | . . . . . 10 7 53 35 Explosions 50 | . . . . . . . 16 34 Melee 48 | . . . . . . . . 48 Knockbacks . | . . . . . . . . . Impact . | . . . . . . . . . Kinetic . | . . . . . . . . . Secondary . | . . . . . . . . . Self-Inflicted Damage 278 | . . . . . 107 . 23 148 Shots 11 | . . . . . 3 . 3 5 Rammed . | . . . . . . . . . Targets Rammed . | . . . . . . . . . Kicked . | . . . . . . . . . Crushed . | . . . . . . . . . Highest Temperature 459 | 20 76 . . 12 459 440 366 310 Average Temperature 147 | 15 32 . . 10 143 182 146 146 Received Heat Transfer 1605 | . 126 . . 12 306 126 207 828 Effects 6 | . . . . . 2 2 . 2 Shutdowns 2 | . . . . . 1 1 . . Energy Bleed 2 | . . . . . . . . 2 Matter Decay 1 | . . . . . 1 . . . Short Circuit 1 | . . . . . . 1 . . Siege Activations . | . . . . . . . . . Robots Corrupted 2 | . . . . . . . . 2 Combat Hostiles 2 | . . . . . . . . 2 Parts Fried 12 | 1 . . . . 1 . 1 9 Impact Corruptions . | . . . . . . . . . Robots Melted 3 | . . . . . 1 2 . . Combat Hostiles 3 | . . . . . 1 2 . . Parts Melted 18 | . . . . . 5 10 . 3 Heat Transferred 6539 | . . . . 250 2078 1858 1320 1033 Parts Sabotaged . | . . . . . . . . . Parts Stolen . | . . . . . . . . . Parts Stripped . | . . . . . . . . . Power Chain Reactions 7 | . . . . . 3 . . 4 Missiles Intercepted . | . . . . . . . . . Alert | -11 -10 -10 -10 -9 -8 -7 -7 -7 ------- Run | Scr Mat Min Exi Min Mat Fac Low Low Peak Influence 284 | 30 211 82 . 135 284 179 . . Average Influence 96 | 12 118 82 . 62 134 63 . . Maximum Alert Level 1 | . 1 . . . 1 . . . Low Security (%) 97 | 100 88 100 . 100 94 100 . . Level 1 2 | . 11 . . . 5 . . . Level 2 . | . . . . . . . . . Level 3 . | . . . . . . . . . Level 4 . | . . . . . . . . . Level 5 . | . . . . . . . . . High Security . | . . . . . . . . . Max Security . | . . . . . . . . . Squads Dispatched 7 | . 1 . . . 3 3 . . Investigation 2 | . 1 . . . 1 . . . Extermination 1 | . . . . . . 1 . . Reinforcement 4 | . . . . . 2 2 . . Assault . | . . . . . . . . . Garrison . | . . . . . . . . . Intercept . | . . . . . . . . . Construction Impeded 1 | . . . . . 1 . . . Haulers Reinforced . | . . . . . . . . . Stealth | -11 -10 -10 -10 -9 -8 -7 -7 -7 --------- Run | Scr Mat Min Exi Min Mat Fac Low Low Distress Signals . | . . . . . . . . . Communications Jammed . | . . . . . . . . . Distress Signals . | . . . . . . . . . Times Spotted 101 | . 12 . . 6 26 11 9 37 Peak Tracking Total 5 | . 3 . . 4 5 2 3 4 Tactical Retreats 18 | . 1 . . . 4 . 4 9 Traps | -11 -10 -10 -10 -9 -8 -7 -7 -7 ------- Run | Scr Mat Min Exi Min Mat Fac Low Low Traps Triggered 4 | . 1 . . . . 1 . 2 Indirectly 2 | . . . . . . . . 2 Trap Hack Attempts . | . . . . . . . . . Triggered . | . . . . . . . . . Disarmed . | . . . . . . . . . Reprogrammed . | . . . . . . . . . Reused 7 | . . . . . . . 1 6 Traps Extracted . | . . . . . . . . . Installed 8 | . . . . . . . 1 7 Triggered 4 | . . . . . . . 3 1 Exploded 3 | . . . . . . . . 3 Machines | -11 -10 -10 -10 -9 -8 -7 -7 -7 ---------- Run | Scr Mat Min Exi Min Mat Fac Low Low Machines Disabled 1 | . 1 . . . . . . . Max in Single Turn 1 | . 1 . . . . . . . Garrison Access 2 | . . . . . 1 1 . . Machines Sabotaged . | . . . . . . . . . Garrisons Compromised . | . . . . . . . . . Overloaded Fab Kills . | . . . . . . . . . Fab Network Shutdowns . | . . . . . . . . . Hacking | -11 -10 -10 -10 -9 -8 -7 -7 -7 --------- Run | Scr Mat Min Exi Min Mat Fac Low Low Machines Accessed 18 | . 3 . 1 . 5 8 . 1 Terminals 9 | . 3 . . . 3 3 . . Fabricators 2 | . . . . . . 2 . . Repair Stations 1 | . . . . . . 1 . . Recycling Units . | . . . . . . . . . Scanalyzers 2 | . . . . . 1 1 . . Garrison Access 2 | . . . . . 1 1 . . Total Hacks 44 | . 8 . 1 . 17 17 . 1 Successful 27 | . 5 . 1 . 11 9 . 1 Failed 17 | . 3 . . . 6 8 . . Catastrophic 1 | . 1 . . . . . . . Database Lockouts . | . . . . . . . . . Manual 25 | . 8 . 2 . 9 6 . . Terminals 25 | . 8 . . . 11 6 . . Fabricators 3 | . . . . . . 3 . . Repair Stations 2 | . . . . . . 2 . . Recycling Units . | . . . . . . . . . Scanalyzers 8 | . . . . . 5 3 . . Garrison Access 4 | . . . . . 1 3 . . Terminal Hacks 7 | . 2 . 1 . 2 1 . 1 Part Schematic 1 | . 1 . . . . . . . Open Door 1 | . . . . . . . . 1 Branch Access Points 1 | . . . . . . 1 . . Terminal Index 2 | . 1 . . . 1 . . . Scanalyzer Index 1 | . . . . . 1 . . . EX-Prototype ID Bank 1 | . . . 1 . . . . . Fabricator Hacks 1 | . . . . . . 1 . . Load Schematic 1 | . . . . . . 1 . . Repair Station Hacks 1 | . . . . . . 1 . . Scan Component 1 | . . . . . . 1 . . Recycling Unit Hacks . | . . . . . . . . . Scanalyzer 7 | . . . . . 5 2 . . Insert Component 3 | . . . . . 2 1 . . Analyze 4 | . . . . . 3 1 . . Garrison Access Hacks 2 | . . . . . 1 1 . . Seal Access 2 | . . . . . 1 1 . . Unauthorized Hacks 21 | . 7 . . . 8 6 . . Terminals 9 | . 3 . . . 3 3 . . Track 1 | . 1 . . . . . . . Botnet 7 | . 1 . . . 3 3 . . Operators 1 | . 1 . . . . . . . Fabricators . | . . . . . . . . . Repair Stations . | . . . . . . . . . Recycling Units . | . . . . . . . . . Scanalyzers . | . . . . . . . . . Garrison Access . | . . . . . . . . . Data Cores Recovered . | . . . . . . . . . Used . | . . . . . . . . . Hacking Detections 13 | . 2 . . . 4 7 . . Full Trace Events . | . . . . . . . . . Feedback Events . | . . . . . . . . . Feedback Blocked . | . . . . . . . . . Robot Schematics Acquired . | . . . . . . . . . Robots Built . | . . . . . . . . . Matter . | . . . . . . . . . Time . | . . . . . . . . . Total Robot Build Rating . | . . . . . . . . . Part Schematics Acquired 4 | . 1 . . . 2 1 . . Parts Built . | . . . . . . . . . Matter . | . . . . . . . . . Time . | . . . . . . . . . Total Part Build Rating . | . . . . . . . . . Parts Repaired . | . . . . . . . . . Time . | . . . . . . . . . Parts Recycled . | . . . . . . . . . Recycled Matter . | . . . . . . . . . Retrieved Matter . | . . . . . . . . . Retrieved Components . | . . . . . . . . . Parts Scanalyzed 3 | . . . . . 2 1 . . Part Schematics Acquired 3 | . . . . . 2 1 . . Parts Damaged . | . . . . . . . . . Bothacking | -11 -10 -10 -10 -9 -8 -7 -7 -7 ------------ Run | Scr Mat Min Exi Min Mat Fac Low Low Used RIF Installer . | . . . . . . . . . Robots Hacked . | . . . . . . . . . Non-combat . | . . . . . . . . . Combat . | . . . . . . . . . Robot Hacks Applied . | . . . . . . . . . Relay Couplers Released . | . . . . . . . . . Robots Rewired 2 | . . . . . . . . 2 Allies Hacked . | . . . . . . . . . Hacks Repelled . | . . . . . . . . . Allies | -11 -10 -10 -10 -9 -8 -7 -7 -7 -------- Run | Scr Mat Min Exi Min Mat Fac Low Low Total Allies 2 | . . . . . . . . 2 Largest Group 2 | . . . . . . . . 2 Highest-Rated Group 62 | . . . . . . . . 62 Highest-Rated Ally 31 | . . . . . . . . 31 Total Orders . | . . . . . . . . . Ally Attacks 11 | . . . . . . . . 11 Total Damage 189 | . . . . . . . . 189 Kills 2 | . . . . . . . . 2 Allies Corrupted . | . . . . . . . . . Allies Melted . | . . . . . . . . . Intel | -11 -10 -10 -10 -9 -8 -7 -7 -7 ------- Run | Scr Mat Min Exi Min Mat Fac Low Low Robot Analysis Total . | . . . . . . . . . Derelict Logs Recovered 4 | . . 1 . . . . 1 2 Drone Launches . | . . . . . . . . . Drone Recoveries . | . . . . . . . . . Exploration | -11 -10 -10 -10 -9 -8 -7 -7 -7 ------------- Run | Scr Mat Min Exi Min Mat Fac Low Low Turns Passed 7254 | 124 253 259 309 372 1561 1179 1221 1976 Spaces Moved 4255 | 71 151 282 285 274 816 710 784 882 Core 11 | 11 . . . . . . . . Treads 375 | . . . . . . 47 40 288 Legs 258 | . . . . . . . . 258 Wheels 3608 | 60 151 282 285 274 816 663 744 333 Hover . | . . . . . . . . . Flight 3 | . . . . . . . . 3 Fastest Speed 50 | 50 80 90 90 110 100 106 130 140 Average Speed 132 | 80 91 90 104 110 114 127 143 183 Slowest Speed 1240 | 150 110 90 110 110 150 210 230 1240 Overloaded Moves . | . . . . . . . . . Propulsion Burnouts . | . . . . . . . . . Robots Hopped . | . . . . . . . . . Cave-ins Triggered . | . . . . . . . . . Exploration Rate (%) 47 | 4 28 57 70 54 49 23 75 63 Regions Visited 8 Branch Regions 5 Pre-discovered Areas 2 | . . . . . . . . 2 Known Exits Taken 2 | . . . . . . 1 1 . Unknown Exits Taken 6 | 1 1 1 1 1 1 . . . Scrap Searched 6 | . . 2 . . . . 3 1 Spaces Dug 1 | . . . . . . . . 1 Terrain Destroyed 66 | . . . . . 8 . 23 35 Melee 1 | . . . . . . . . 1 Projectile 10 | . . . . . . . 8 2 AOE 55 | . . . . . 8 . 15 32 Actions | -11 -10 -10 -10 -9 -8 -7 -7 -7 --------- Run | Scr Mat Min Exi Min Mat Fac Low Low Total 5430 | 118 216 287 297 316 1307 931 832 1126 Wait 588 | . 18 4 2 25 336 166 2 35 Move 4247 | 70 150 281 284 273 815 709 783 882 Hop . | . . . . . . . . . Pick Up 123 | 16 7 2 7 3 41 12 13 22 Fast Attach . | . . . . . . . . . Attach 58 | 7 4 . . 1 19 4 2 21 Detach . | . . . . . . . . . Swap 20 | 1 2 . 2 . 6 3 3 3 Drop 56 | 4 2 . 2 . 19 11 3 15 Fire 235 | 20 33 . . 14 71 26 25 46 Melee 23 | . . . . . . . . 23 Ram . | . . . . . . . . . Kick . | . . . . . . . . . Crush . | . . . . . . . . . Escape Stasis . | . . . . . . . . . Rewire 72 | . . . . . . . . 72 Trap 8 | . . . . . . . 1 7 Miscellaneous . | . . . . . . . . . Route ------- -11/Scrapyard -10/Materials -10/Mines (discovered 3 exits: *Mat x2 / *Exi) -10/Exiles -9/Mines -8/Materials -7/Factory (discovered 3 exits: [*Fac] / *Low x2) -7/Lower Caves -7/Lower Caves (discovered 1 exit: [*Fac]) History --------- Turn | Location | Event 15 | -11/Scrapyard | Discovered new exit (range 16) 125 | -11/Scrapyard | Entered Materials 286 | -10/Materials | Discovered new exit (range 7) 312 | -10/Materials | Build established: Mutant 378 | -10/Materials | Entered Mines 555 | -10/Mines | Identified exit to Materials 579 | -10/Mines | Found a damaged Exp. Sensor Array with a note attached 582 | -10/Mines | Found Prototype Device 619 | -10/Mines | Discovered exit to Materials (range 11) 634 | -10/Mines | Deemed a non-threat by the Exiles lab entrance 634 | -10/Mines | Discovered new exit (range 5) 637 | -10/Mines | Entered Exiles 668 | -10/Exiles | Met 8R-AWN 682 | -10/Exiles | Met EX-HEX 742 | -10/Exiles | Met EX-DEC 790 | -10/Exiles | Met EX-BIN 802 | -10/Exiles | Aligned with FarCom system 803 | -10/Exiles | Given EX-Vault access code 830 | -10/Exiles | Opened EX-Vault 840 | -10/Exiles | Found Field Lobotomy Kit 862 | -10/Exiles | Warned to stay clear of 0b10 Research branches 876 | -10/Exiles | Exiles lab attacked by MAIN.C 934 | -10/Exiles | Discovered new exit (range 14) 946 | -10/Exiles | Left Exiles lab with Field Lobotomy Kit 946 | -10/Exiles | Entered Mines 1010 | -9/Mines | Build established: Hauler-Mutant 1254 | -9/Mines | Discovered new exit (range 11) 1318 | -9/Mines | Entered Materials 1318 | -8/Materials | Evolved 4 slots: Propulsion x1, Utility x2, Weapon x1 1742 | -8/Materials | Lost 4 parts (1n2u1w) 2395 | -8/Materials | Lost 3 parts (2n1w) 2450 | -8/Materials | Discovered new exit (range 8) 2491 | -8/Materials | Identified Exp. Sensor Array 2879 | -8/Materials | Entered Factory 2879 | -7/Factory | Evolved 2 slots: Propulsion x1, Utility x1 3082 | -7/Factory | Build established: Hauler-Gunner 3441 | -7/Factory | Discovered new exit (range 6) 3874 | -7/Factory | Build established: Hauler-Skirmisher 3903 | -7/Factory | Identified exit to Lower Caves 4058 | -7/Factory | Entered Lower Caves 4395 | -7/Lower Caves | Build established: Hauler-Mutant 4553 | -7/Lower Caves | Identified exit to Lower Caves 5279 | -7/Lower Caves | Entered another Lower Caves area 5351 | -7/Lower Caves | Discovered new exit (range 8) 5592 | -7/Lower Caves | Lost 3 parts (2u1w) 5752 | -7/Lower Caves | Attacked by a faux Warlord 5935 | -7/Lower Caves | Found Prototype Device 5999 | -7/Lower Caves | Learned location of Extension (-5) 6021 | -7/Lower Caves | Learned location of Zion (-7) 6032 | -7/Lower Caves | Build established: Hauler-Tank 6148 | -7/Lower Caves | Core integrity fell below 50% 6160 | -7/Lower Caves | Lost 7 parts (1p2n1u3w) 6412 | -7/Lower Caves | Build established: Hauler-Mutant 6477 | -7/Lower Caves | Identified Heart of Steel 6652 | -7/Lower Caves | Lost 5 parts (1n4w) 7147 | -7/Lower Caves | Core integrity fell below 20% 7191 | -7/Lower Caves | Lost 3 parts (1p2n) 7255 | -7/Lower Caves | Destroyed by S-27 Virus with Autogun Last Messages --------------- 07146_ Carbon-fiber Leg destroyed. 07150_ Lgt. Nuclear Core fries itself beyond repair. 07150_ VTOL Module fries itself beyond repair. 07151_ Carbon-fiber Leg destroyed. 07152_ Destroyed VTOL Module. 07157_ Autogun fries itself beyond repair. 07158_ Destroyed Autogun. 07160_ Imp. Deuterium Engine destroyed. 07161_ Acquired 25 matter. 07163_ S-27 Virus destroyed. 07169_ Acquired VTOL Module. 07171_ Acquired 10 matter. 07174_ Autogun fries itself beyond repair. 07176_ Acquired VTOL Module. 07181_ Acquired 10 matter. 07187_ Acquired 5 matter. 07187_ Acquired 1 matter. 07214_ Acquired 4 matter. 07230_ Carbon-fiber Leg destroyed. 07232_ VTOL Module destroyed. Map ----- +----------------------------------------------------+ | ## ####??????###?? | | #### ##???### #?? | | ?????## "### #??## ### | | ??????# ###?## ### #### #### | | ????????## #?????# #?# #??# | | ??????????###??????# #??# | | ??????????????????# #?# #### | | ????????????????? #?## ##??## | | ???????????????? ##??###????# ### | | ???????????????## #??????????# #?# | | ????????????????# """ #??????????# ?# | | ????????????????# """" " #?????????? ### | | ????????????????# """ """ #?????????# ##?## | | ????????????????## ? """ #?????????# ##???## | | ????????????????## "?" """ #??##????? #??????? | | ???????????????## "??"??? ?## #????# ???####? | | ???????????????# "?????? ?# ########## ## | | ???????????????# #????? ??# #"# # | | ????????????????# ##????????# | | ???????????????## ! #????###????# | | ???????????????# % #???# ##?????# | | ???????????????# ! #### #?????# | | ???????????????# ## #?????# "" | | ????????????????# ######### " | | ?????????????????# ### ## | | ?????????????????## %s @ #?# ####### ### #### | | ??????????????????## # #?# #?????# #?###??# | | ???????????????????# ## ##?# #????## #??????# | | ????????????????? ## ## ##??# #??### #??????# | | ???????????????# ?# ## #???# ##?# ##?????# | | ?????????????? ?? ## #?### ### ##????? | | ???????????? ??# #### ### ### ###### | | ???????????### ???##?# #?## < | | ?????????????## ##### ##### #?## | | ??????????????# #???## #??## ##### | | ???????????????# #######????# ##???### ##???? | | ??????????????????????????????## ##??????###????? | | ???????????????????????????????####??????????????? | | ?????????????????????????????????????????????????? | | ?????????????????????????????????????????????????? | | ?????????????????????????????????????????????????? | | ?????????????????????????????????????????????????? | | ?????????????????????????????????????????????????? | | ?????????????????????????????????????????????????? | | ?????????????????????????????????????????????????? | | ?????????????????????????????????????????????????? | | ?????????????????????????????????????????????????? | | ?????????????????????????????????????????????????? | | ?????????????????????????????????????????????????? | | ?????????????????????????????????????????????????? | +----------------------------------------------------+ Best States ------------- Heat Dissipation 48 Energy Generation 16 Energy Capacity 290 Matter Stores 300 Matter Capacity 300 Sight Range 16 Terrain Scan Density 10 Armor Coverage 450 Evasion (%) 44 Targeting Accuracy 6 Recoil Reduction 4 Item Schematics ----------------- Lrg. Storage Unit | -10/Materials | Hacked Exp. Sensor Array | -8/Materials | Scanalyzed Nuclear Core | -8/Materials | Scanalyzed Lrn. Terrain Scanner | -7/Factory | Scanalyzed Robot Schematics ------------------ None Fabricated ------------ Nothing Alien Tech Used ----------------- None Achievements -------------- None Challenges ------------ None Game ------ Seed DefenseCloakingImmobilizer Manual? 0 Play Time 00:51:37 Cumulative 246.9 hours Start 2019.12.15 @ 13:53:43 End 2019.12.15 @ 15:00:09 Sessions 1 Manual Loads 0 Difficulty Rogue Special Mode None Game No. 312 Rogue 312 Adventurer 0 Explorer 0 Win Type - Total 2 Types 1/0/0/1/0/0/0 Lore% 59 Gallery% 81 Achievement% 57 Wizard Run 0 Options --------- ASCII 0 Keyboard 0 Movement Numpad Keybinds 0 Fullscreen 1 Font 16/Terminus Map View 75x55 Tactical HUD 1 Map Filters NONE Filters NONE Steam 1 RUN: 6dd409da-ad26-4713-b34b-820254ed04b7